{"text_format":"1","workbook":"xlsx","n_sheets":3,"sheets":["start","trainersplanning","printblad"],"not_rendered":{"charts":0,"images":0,"macros":1,"external_links":0,"defined_names":4,"comments":0,"pivot_tables":0},"unopened":[],"bounds":{"document_bytes":16777216,"sheet_cells":100000,"rows_first":2000,"rows_last":500,"rows_between":2000,"halvings":0,"cell_chars":16384,"cell_head_chars":4096},"cells_cut":0,"cells_raw":0,"read":"whole","date_system":"1900"}

{"sheet":"start","index":0,"n_rows":4,"n_cols":12,"rows_kept":4,"cut":false,"hidden":false,"merged":[[2,4,2,7],[3,4,3,7]]}
[]
[]
[null,null,"Kandidaatnaam:",null,null,null,null,null,null,null,null,"Druk op start om te beginnen."]
[null,null,"Kandidaatnummer:"]

{"sheet":"trainersplanning","index":1,"n_rows":41,"n_cols":13,"rows_kept":41,"cut":false,"hidden":false,"merged":[[27,3,30,3],[27,2,34,2],[36,2,43,2],[31,3,34,3],[36,3,39,3],[40,3,43,3],[18,2,25,2],[9,3,12,3],[13,3,16,3],[18,3,21,3],[22,3,25,3],[9,2,16,2],[14,10,15,11],[16,10,17,11],[19,9,19,10],[8,12,9,14],[10,12,11,14],[12,12,13,14],[14,12,15,14],[16,12,17,14],[8,10,9,11],[10,10,11,11],[12,10,13,11],[2,3,2,4],[3,3,3,4],[2,10,2,14],[4,12,5,14],[6,12,7,14],[4,10,5,11],[6,10,7,11],[7,2,7,5],[3,10,3,11],[5,2,5,5]]}
[]
[]
[null,null,"Kandidaatnaam:",{"$f":"IF(start!E3=\"\",\"\",start!E3)","v":""},null,null,null,null,null,null,"beschikbaarheid"]
[null,null,"Kandidaatnummer:",{"$f":"IF(start!E4=\"\",\"\",start!E4)","v":""},null,null,null,null,null,"trainers","binnen-/buitensport",null,"beschikbaarheid tijden"]
[null,null,null,null,null,null,null,null,null,"Audrey","alleen binnensport",null,"alle tijden beschikbaar behalve op vrijdag van 12.00 - 15.00"]
[null,null,{"$f":"start!L3","v":"Druk op start om te beginnen."}]
[null,null,null,null,null,null,null,null,null,"Femke","alleen binnensport",null,"beschikbaar op vrijdag en zaterdag van 9.00 - 12.00 en vrijdag 18.00 - 21.00"]
[null,null,"trainersplanning GoSport"]
[null,null,"tijd","binnensport / buitensport","vrijdag","zaterdag",null,null,null,"Gwen","alleen buitensport",null,"alle tijden beschikbaar"]
[null,null,"9.00 - 12.00","binnensport"]
[null,null,null,null,null,null,null,null,null,"Ilona","binnen- en buitensport",null,"alle tijden beschikbaar behalve op vrijdag van 15.00 - 21.00"]
[]
[null,null,null,null,null,null,null,null,null,"Jacco","alleen buitensport",null,"alle tijden beschikbaar"]
[null,null,null,"buitensport"]
[null,null,null,null,null,null,null,null,null,"Marlisse","alleen binnensport",null,"alle tijden beschikbaar behalve op vrijdag van 09.00 - 12.00"]
[]
[null,null,null,null,null,null,null,null,null,"Rosario","alleen binnensport",null,"alleen op zaterdag beschikbaar tussen 09.00 - 15.00 en van 18.00 - 21.00"]
[]
[null,null,"12.00 - 15.00","binnensport"]
[null,null,null,null,null,null,null,null,null,"cellen wissen"]
[]
[]
[null,null,null,"buitensport"]
[]
[]
[]
[]
[null,null,"15.00 - 18.00","binnensport"]
[]
[]
[]
[null,null,null,"buitensport"]
[]
[]
[]
[]
[null,null,"18.00 - 21.00","binnensport"]
[]
[]
[]
[null,null,null,"buitensport"]

{"sheet":"printblad","index":2,"n_rows":38,"n_cols":5,"rows_kept":38,"cut":false,"hidden":true,"merged":[[2,2,2,4],[3,2,3,4],[7,1,7,4],[9,1,16,1],[9,2,12,2],[13,2,16,2],[5,1,5,4],[33,1,40,1],[33,2,36,2],[37,2,40,2],[17,1,24,1],[17,2,20,2],[21,2,24,2],[25,1,32,1],[25,2,28,2],[29,2,32,2]]}
[]
[]
[null,"Kandidaatnaam:",{"$f":"trainersplanning!D3","v":""}]
[null,"Kandidaatnummer:",{"$f":"trainersplanning!D4","v":""}]
[]
[null,{"$f":"start!L3","v":"Druk op start om te beginnen."}]
[]
[null,"trainersplanning GoSport"]
[null,"tijd","binnensport / buitensport","vrijdag","zaterdag"]
[null,"9.00 - 12.00","binnensport",{"$f":"trainersplanning!E10","v":0},{"$f":"trainersplanning!F10","v":0}]
[null,null,null,{"$f":"trainersplanning!E11","v":0},{"$f":"trainersplanning!F11","v":0}]
[null,null,null,{"$f":"trainersplanning!E12","v":0},{"$f":"trainersplanning!F12","v":0}]
[null,null,null,{"$f":"trainersplanning!E13","v":0},{"$f":"trainersplanning!F13","v":0}]
[null,null,"buitensport",{"$f":"trainersplanning!E14","v":0},{"$f":"trainersplanning!F14","v":0}]
[null,null,null,{"$f":"trainersplanning!E15","v":0},{"$f":"trainersplanning!F15","v":0}]
[null,null,null,{"$f":"trainersplanning!E16","v":0},{"$f":"trainersplanning!F16","v":0}]
[null,null,null,{"$f":"trainersplanning!E17","v":0},{"$f":"trainersplanning!F17","v":0}]
[null,"12.00 - 15.00","binnensport",{"$f":"trainersplanning!E19","v":0},{"$f":"trainersplanning!F19","v":0}]
[null,null,null,{"$f":"trainersplanning!E20","v":0},{"$f":"trainersplanning!F20","v":0}]
[null,null,null,{"$f":"trainersplanning!E21","v":0},{"$f":"trainersplanning!F21","v":0}]
[null,null,null,{"$f":"trainersplanning!E22","v":0},{"$f":"trainersplanning!F22","v":0}]
[null,null,"buitensport",{"$f":"trainersplanning!E23","v":0},{"$f":"trainersplanning!F23","v":0}]
[null,null,null,{"$f":"trainersplanning!E24","v":0},{"$f":"trainersplanning!F24","v":0}]
[null,null,null,{"$f":"trainersplanning!E25","v":0},{"$f":"trainersplanning!F25","v":0}]
[null,null,null,{"$f":"trainersplanning!E26","v":0},{"$f":"trainersplanning!F26","v":0}]
[null,"15.00 - 18.00","binnensport",{"$f":"trainersplanning!E28","v":0},{"$f":"trainersplanning!F28","v":0}]
[null,null,null,{"$f":"trainersplanning!E29","v":0},{"$f":"trainersplanning!F29","v":0}]
[null,null,null,{"$f":"trainersplanning!E30","v":0},{"$f":"trainersplanning!F30","v":0}]
[null,null,null,{"$f":"trainersplanning!E31","v":0},{"$f":"trainersplanning!F31","v":0}]
[null,null,"buitensport",{"$f":"trainersplanning!E32","v":0},{"$f":"trainersplanning!F32","v":0}]
[null,null,null,{"$f":"trainersplanning!E33","v":0},{"$f":"trainersplanning!F33","v":0}]
[null,null,null,{"$f":"trainersplanning!E34","v":0},{"$f":"trainersplanning!F34","v":0}]
[null,null,null,{"$f":"trainersplanning!E35","v":0},{"$f":"trainersplanning!F35","v":0}]
[null,"18.00 - 21.00","binnensport",{"$f":"trainersplanning!E37","v":0},{"$f":"trainersplanning!F37","v":0}]
[null,null,null,{"$f":"trainersplanning!E38","v":0},{"$f":"trainersplanning!F38","v":0}]
[null,null,null,{"$f":"trainersplanning!E39","v":0},{"$f":"trainersplanning!F39","v":0}]
[null,null,null,{"$f":"trainersplanning!E40","v":0},{"$f":"trainersplanning!F40","v":0}]
[null,null,"buitensport"]